[Event "Titled Tuesday Blitz April 19 Early 2022"]
[White "Shuvalov, Evgenij"]
[Black "Niyazgulova, Marina"]
[WhiteFideId "4187237"]
[BlackFideId "24142573"]
[WhiteElo "2130"]
[BlackElo "2046"]
[Result "0-1"]
[Round "06"]
[TimeControl "180+1"]
[Date "2022.04.19"]
[WhiteClock "0:00:14"]
[BlackClock "0:00:12"]

1. b4 {[%clk 0:03:00]}  d5 {[%clk 0:02:59]} 2. Bb2 {[%clk 0:03:00]}  Nf6 {[%clk 0:02:59]} 3. e3 {[%clk 0:03:00]}  c6 {[%clk 0:02:54]} 4. c4 {[%clk 0:02:53]}  Bf5 {[%clk 0:02:49]} 5. a3 {[%clk 0:02:43]}  e6 {[%clk 0:02:46]} 6. Nf3 {[%clk 0:02:41]}  Bd6 {[%clk 0:02:43]} 7. d3 {[%clk 0:02:36]}  O-O {[%clk 0:02:32]} 8. Nbd2 {[%clk 0:02:36]}  c5 {[%clk 0:02:21]} 9. bxc5 {[%clk 0:02:31]}  Bxc5 {[%clk 0:02:19]} 10. Be2 {[%clk 0:02:25]}  Nc6 {[%clk 0:02:13]} 11. Bxf6 {[%clk 0:02:17]}  Qxf6 {[%clk 0:02:09]} 12. d4 {[%clk 0:02:18]}  Be7 {[%clk 0:02:04]} 13. O-O {[%clk 0:02:17]}  Rac8 {[%clk 0:01:57]} 14. Qa4 {[%clk 0:02:02]}  Rfd8 {[%clk 0:01:41]} 15. Rfc1 {[%clk 0:02:01]}  h6 {[%clk 0:01:28]} 16. h3 {[%clk 0:02:01]}  a6 {[%clk 0:00:56]} 17. cxd5 {[%clk 0:01:50]}  exd5 {[%clk 0:00:55]} 18. Nb3 {[%clk 0:00:59]}  b5 {[%clk 0:00:35]} 19. Qxa6 {[%clk 0:00:58]}  Nxd4 {[%clk 0:00:34]} 20. Qxf6 {[%clk 0:00:58]}  Nxe2+ {[%clk 0:00:34]} 21. Kf1 {[%clk 0:00:58]}  Bxf6 {[%clk 0:00:33]} 22. Kxe2 {[%clk 0:00:54]}  Bxa1 {[%clk 0:00:32]} 23. Rxa1 {[%clk 0:00:53]}  Rc2+ {[%clk 0:00:31]} 24. Ke1 {[%clk 0:00:51]}  Bd3 {[%clk 0:00:25]} 25. Nfd4 {[%clk 0:00:49]}  Rb2 {[%clk 0:00:21]} 26. Nc1 {[%clk 0:00:46]}  Bc4 {[%clk 0:00:20]} 27. a4 {[%clk 0:00:44]}  bxa4 {[%clk 0:00:18]} 28. Rxa4 {[%clk 0:00:44]}  Rb1 {[%clk 0:00:19]} 29. Kd2 {[%clk 0:00:44]}  Rdb8 {[%clk 0:00:19]} 30. Nd3 {[%clk 0:00:32]}  Bxd3 {[%clk 0:00:17]} 31. Kxd3 {[%clk 0:00:33]}  R8b2 {[%clk 0:00:16]} 32. Nc6 {[%clk 0:00:24]}  Rd1+ {[%clk 0:00:15]} 33. Kc3 {[%clk 0:00:24]}  Rxf2 {[%clk 0:00:15]} 34. Ra8+ {[%clk 0:00:22]}  Kh7 {[%clk 0:00:14]} 35. Ra7 {[%clk 0:00:22]}  Kg6 {[%clk 0:00:14]} 36. Ne5+ {[%clk 0:00:20]}  Kh7 {[%clk 0:00:14]} 37. Nxf7 {[%clk 0:00:20]}  Rxg2 {[%clk 0:00:14]} 38. Ra8 {[%clk 0:00:17]}  Re1 {[%clk 0:00:14]} 39. Kd4 {[%clk 0:00:17]}  Rd2+ {[%clk 0:00:13]} 40. Kc5 {[%clk 0:00:17]}  Rxe3 {[%clk 0:00:13]} 41. Rh8+ {[%clk 0:00:16]}  Kg6 {[%clk 0:00:13]} 42. Nd6 {[%clk 0:00:17]}  Rc3+ {[%clk 0:00:13]} 43. Kb6 {[%clk 0:00:17]}  Rb2+ {[%clk 0:00:13]} 44. Nb5 {[%clk 0:00:17]}  Rcb3 {[%clk 0:00:13]} 45. Kc5 {[%clk 0:00:18]}  Rxb5+ {[%clk 0:00:13]} 46. Kd6 {[%clk 0:00:19]}  Rb6+ {[%clk 0:00:13]} 47. Ke5 {[%clk 0:00:19]}  d4 {[%clk 0:00:13]} 48. Kxd4 {[%clk 0:00:19]}  R2b5 {[%clk 0:00:14]} 49. Kc4 {[%clk 0:00:19]}  Rb1 {[%clk 0:00:13]} 50. Kc5 {[%clk 0:00:19]}  R6b2 {[%clk 0:00:13]} 51. Re8 {[%clk 0:00:18]}  Rd2 {[%clk 0:00:13]} 52. Re6+ {[%clk 0:00:17]}  Kf7 {[%clk 0:00:12]} 53. Re4 {[%clk 0:00:17]}  Rc1+ {[%clk 0:00:13]} 54. Kb4 {[%clk 0:00:16]}  Rb2+ {[%clk 0:00:13]} 55. Ka3 {[%clk 0:00:16]}  Rb7 {[%clk 0:00:13]} 56. Rf4+ {[%clk 0:00:15]}  Kg6 {[%clk 0:00:12]} 57. Rg4+ {[%clk 0:00:15]}  Kh7 {[%clk 0:00:12]} 58. Rb4 {[%clk 0:00:14]}  Rxb4 {[%clk 0:00:12]} 59. Kxb4 {[%clk 0:00:14]}  Rh1 {[%clk 0:00:12]} 0-1


[Site "https://www.chess.com"]

[Event "Titled Tuesday Blitz April 19 Early 2022"]
[White "Smietanska, Wiktoria"]
[Black "Valle Maytin, Luis Enrique"]
[WhiteFideId "21869359"]
[BlackFideId "3503666"]
[WhiteElo "1893"]
[BlackElo "2306"]
[Result "1-0"]
[Round "06"]
[TimeControl "180+1"]
[Date "2022.04.19"]
[WhiteClock "0:01:50"]
[BlackClock "0:01:24"]

1. c4 {[%clk 0:03:00]}  c5 {[%clk 0:02:59]} 2. Nf3 {[%clk 0:02:57]}  Nc6 {[%clk 0:02:58]} 3. Nc3 {[%clk 0:02:57]}  g6 {[%clk 0:02:58]} 4. e3 {[%clk 0:02:55]}  Bg7 {[%clk 0:02:58]} 5. d4 {[%clk 0:02:56]}  cxd4 {[%clk 0:02:55]} 6. exd4 {[%clk 0:02:57]}  d6 {[%clk 0:02:55]} 7. d5 {[%clk 0:02:57]}  Ne5 {[%clk 0:02:55]} 8. Nd4 {[%clk 0:02:56]}  Nf6 {[%clk 0:02:54]} 9. Be2 {[%clk 0:02:55]}  O-O {[%clk 0:02:54]} 10. f4 {[%clk 0:02:54]}  Ned7 {[%clk 0:02:53]} 11. O-O {[%clk 0:02:54]}  a5 {[%clk 0:02:54]} 12. f5 {[%clk 0:02:54]}  Nc5 {[%clk 0:02:48]} 13. Be3 {[%clk 0:02:50]}  Nfd7 {[%clk 0:02:39]} 14. Qd2 {[%clk 0:02:46]}  Ne5 {[%clk 0:02:35]} 15. a3 {[%clk 0:02:43]}  a4 {[%clk 0:02:34]} 16. Bh6 {[%clk 0:02:41]}  Bd7 {[%clk 0:02:17]} 17. Bxg7 {[%clk 0:02:35]}  Kxg7 {[%clk 0:02:18]} 18. Qg5 {[%clk 0:02:32]}  Qb6 {[%clk 0:02:09]} 19. f6+ {[%clk 0:02:30]}  exf6 {[%clk 0:02:05]} 20. Qxf6+ {[%clk 0:02:27]}  Kg8 {[%clk 0:02:06]} 21. Kh1 {[%clk 0:02:15]}  Bg4 {[%clk 0:02:00]} 22. Bxg4 {[%clk 0:02:08]}  Nxg4 {[%clk 0:02:01]} 23. Qf4 {[%clk 0:02:08]}  Ne5 {[%clk 0:01:59]} 24. Qh6 {[%clk 0:02:04]}  Ncd3 {[%clk 0:01:56]} 25. Ne4 {[%clk 0:01:56]}  Nd7 {[%clk 0:01:47]} 26. Ng5 {[%clk 0:01:53]}  Nf6 {[%clk 0:01:24]} 27. Rxf6 {[%clk 0:01:51]}  Qxd4 {[%clk 0:01:24]} 28. Qxh7# {[%clk 0:01:50]} 1-0


[Site "https://www.chess.com"]

[Event "Titled Tuesday Blitz April 19 Early 2022"]
[White "Tanenbaum, Zachary"]
[Black "Xu, Yi"]
[WhiteFideId "2060850"]
[BlackFideId "8605564"]
[WhiteElo "2168"]
[BlackElo "2471"]
[Result "0-1"]
[Round "06"]
[TimeControl "180+1"]
[Date "2022.04.19"]
[WhiteClock "0:00:07"]
[BlackClock "0:00:07"]

1. e4 {[%clk 0:03:00]}  c5 {[%clk 0:03:00]} 2. Nf3 {[%clk 0:03:00]}  d6 {[%clk 0:03:00]} 3. d4 {[%clk 0:03:00]}  cxd4 {[%clk 0:03:00]} 4. Nxd4 {[%clk 0:03:01]}  Nf6 {[%clk 0:03:01]} 5. Nc3 {[%clk 0:03:01]}  a6 {[%clk 0:03:01]} 6. Be3 {[%clk 0:03:02]}  e5 {[%clk 0:03:00]} 7. Nb3 {[%clk 0:03:02]}  Be7 {[%clk 0:02:58]} 8. h3 {[%clk 0:03:02]}  Nc6 {[%clk 0:02:56]} 9. f4 {[%clk 0:03:01]}  exf4 {[%clk 0:02:56]} 10. Bxf4 {[%clk 0:03:02]}  Be6 {[%clk 0:02:56]} 11. Qe2 {[%clk 0:03:02]}  O-O {[%clk 0:02:54]} 12. O-O-O {[%clk 0:03:02]}  Qc7 {[%clk 0:02:43]} 13. Kb1 {[%clk 0:03:02]}  Ne5 {[%clk 0:02:41]} 14. g4 {[%clk 0:03:02]}  Nfd7 {[%clk 0:02:40]} 15. g5 {[%clk 0:02:59]}  b5 {[%clk 0:02:40]} 16. Nd5 {[%clk 0:02:58]}  Bxd5 {[%clk 0:02:39]} 17. exd5 {[%clk 0:02:58]}  Rfe8 {[%clk 0:02:34]} 18. h4 {[%clk 0:02:58]}  Bf8 {[%clk 0:02:33]} 19. Qg2 {[%clk 0:02:58]}  Nc4 {[%clk 0:02:19]} 20. Nd4 {[%clk 0:02:47]}  Nde5 {[%clk 0:02:00]} 21. h5 {[%clk 0:02:42]}  b4 {[%clk 0:01:53]} 22. Bxc4 {[%clk 0:02:24]}  Qxc4 {[%clk 0:01:44]} 23. Bxe5 {[%clk 0:02:20]}  dxe5 {[%clk 0:01:38]} 24. Nc6 {[%clk 0:02:19]}  Bd6 {[%clk 0:01:13]} 25. g6 {[%clk 0:02:18]}  fxg6 {[%clk 0:01:10]} 26. hxg6 {[%clk 0:02:19]}  h6 {[%clk 0:01:11]} 27. Rdf1 {[%clk 0:01:51]}  Rf8 {[%clk 0:01:08]} 28. Qh3 {[%clk 0:01:48]}  Qxd5 {[%clk 0:01:03]} 29. Rd1 {[%clk 0:01:45]}  Qxc6 {[%clk 0:00:29]} 30. Qe6+ {[%clk 0:01:45]}  Kh8 {[%clk 0:00:29]} 31. Rxh6+ {[%clk 0:01:46]}  gxh6 {[%clk 0:00:29]} 32. g7+ {[%clk 0:01:47]}  Kh7 {[%clk 0:00:30]} 33. gxf8=Q {[%clk 0:01:46]}  Rxf8 {[%clk 0:00:27]} 34. Rg1 {[%clk 0:01:47]}  Qg2 {[%clk 0:00:19]} 35. Rd1 {[%clk 0:01:40]}  Qg6 {[%clk 0:00:17]} 36. Qd7+ {[%clk 0:01:38]}  Rf7 {[%clk 0:00:16]} 37. Qe8 {[%clk 0:01:30]}  Bf8 {[%clk 0:00:16]} 38. Qxe5 {[%clk 0:01:22]}  Bg7 {[%clk 0:00:16]} 39. Qc5 {[%clk 0:01:16]}  Qe4 {[%clk 0:00:11]} 40. Qb6 {[%clk 0:01:01]}  Rb7 {[%clk 0:00:08]} 41. Qxa6 {[%clk 0:01:00]}  Qe5 {[%clk 0:00:08]} 42. Qd3+ {[%clk 0:01:00]}  Kh8 {[%clk 0:00:06]} 43. Qd8+ {[%clk 0:01:00]}  Kh7 {[%clk 0:00:07]} 44. Qd3+ {[%clk 0:01:00]}  Kg8 {[%clk 0:00:06]} 45. Qc4+ {[%clk 0:01:00]}  Rf7 {[%clk 0:00:04]} 46. Rd8+ {[%clk 0:00:49]}  Kh7 {[%clk 0:00:04]} 47. Qd3+ {[%clk 0:00:34]}  Rf5 {[%clk 0:00:04]} 48. Rd4 {[%clk 0:00:29]}  Qxd4 {[%clk 0:00:04]} 49. Qxf5+ {[%clk 0:00:29]}  Kg8 {[%clk 0:00:05]} 50. Qe6+ {[%clk 0:00:29]}  Kf8 {[%clk 0:00:05]} 51. Qc8+ {[%clk 0:00:27]}  Kf7 {[%clk 0:00:05]} 52. Qb7+ {[%clk 0:00:23]}  Kg6 {[%clk 0:00:05]} 53. Qg2+ {[%clk 0:00:10]}  Kh7 {[%clk 0:00:06]} 54. Kc1 {[%clk 0:00:06]}  Qxb2+ {[%clk 0:00:06]} 55. Kd1 {[%clk 0:00:06]}  Qd4+ {[%clk 0:00:06]} 56. Kc1 {[%clk 0:00:06]}  h5 {[%clk 0:00:06]} 57. Qh3 {[%clk 0:00:06]}  Bh6+ {[%clk 0:00:06]} 58. Kb1 {[%clk 0:00:05]}  Qd1+ {[%clk 0:00:05]} 59. Kb2 {[%clk 0:00:06]}  Qd4+ {[%clk 0:00:05]} 60. Kb3 {[%clk 0:00:05]}  Qc3+ {[%clk 0:00:06]} 61. Qxc3 {[%clk 0:00:05]}  bxc3 {[%clk 0:00:06]} 62. Kxc3 {[%clk 0:00:06]}  h4 {[%clk 0:00:07]} 63. Kd3 {[%clk 0:00:07]}  h3 {[%clk 0:00:07]} 0-1


[Site "https://www.chess.com"]

[Event "Titled Tuesday Blitz April 19 Early 2022"]
[White "Tasev, Dejan"]
[Black "Urazayev, Arystanbek"]
[WhiteFideId "936618"]
[BlackFideId "13709810"]
[WhiteElo "2253"]
[BlackElo "2422"]
[Result "0-1"]
[Round "06"]
[TimeControl "180+1"]
[Date "2022.04.19"]
[WhiteClock "0:00:14"]
[BlackClock "0:00:43"]

1. e4 {[%clk 0:02:58]}  c5 {[%clk 0:03:00]} 2. Nf3 {[%clk 0:02:58]}  d6 {[%clk 0:03:01]} 3. Nc3 {[%clk 0:02:58]}  Nc6 {[%clk 0:02:59]} 4. d4 {[%clk 0:02:58]}  cxd4 {[%clk 0:03:00]} 5. Nxd4 {[%clk 0:02:59]}  Nf6 {[%clk 0:03:01]} 6. Bc4 {[%clk 0:02:59]}  e5 {[%clk 0:02:58]} 7. Nde2 {[%clk 0:02:53]}  Be6 {[%clk 0:02:58]} 8. Bb3 {[%clk 0:02:53]}  Be7 {[%clk 0:02:58]} 9. Bg5 {[%clk 0:02:51]}  O-O {[%clk 0:02:53]} 10. Bxf6 {[%clk 0:02:51]}  Bxf6 {[%clk 0:02:54]} 11. Nd5 {[%clk 0:02:47]}  Bg5 {[%clk 0:02:54]} 12. Nec3 {[%clk 0:02:47]}  Nd4 {[%clk 0:02:51]} 13. O-O {[%clk 0:02:43]}  b5 {[%clk 0:02:42]} 14. Qd3 {[%clk 0:02:01]}  Rb8 {[%clk 0:02:24]} 15. Ne2 {[%clk 0:01:50]}  Nxb3 {[%clk 0:02:06]} 16. axb3 {[%clk 0:01:49]}  a5 {[%clk 0:02:06]} 17. c3 {[%clk 0:01:41]}  f5 {[%clk 0:02:05]} 18. f3 {[%clk 0:01:37]}  Kh8 {[%clk 0:01:59]} 19. Rfd1 {[%clk 0:01:29]}  fxe4 {[%clk 0:01:51]} 20. fxe4 {[%clk 0:01:20]}  a4 {[%clk 0:01:51]} 21. Rf1 {[%clk 0:01:14]}  Qd7 {[%clk 0:01:43]} 22. b4 {[%clk 0:01:04]}  Qa7+ {[%clk 0:01:32]} 23. Kh1 {[%clk 0:01:02]}  Rf2 {[%clk 0:01:30]} 24. Rxf2 {[%clk 0:00:50]}  Qxf2 {[%clk 0:01:30]} 25. Qf3 {[%clk 0:00:50]}  Rf8 {[%clk 0:01:22]} 26. Qxf2 {[%clk 0:00:29]}  Rxf2 {[%clk 0:01:23]} 27. Ng3 {[%clk 0:00:27]}  Rxb2 {[%clk 0:01:21]} 28. h3 {[%clk 0:00:23]}  g6 {[%clk 0:01:06]} 29. Nc7 {[%clk 0:00:18]}  Bc4 {[%clk 0:01:05]} 30. Nf1 {[%clk 0:00:17]}  h5 {[%clk 0:00:55]} 31. Nh2 {[%clk 0:00:16]}  Bf4 {[%clk 0:00:53]} 32. Nf3 {[%clk 0:00:15]}  Kg8 {[%clk 0:00:50]} 33. Ne8 {[%clk 0:00:15]}  a3 {[%clk 0:00:46]} 34. Nxd6 {[%clk 0:00:14]}  a2 {[%clk 0:00:45]} 35. Nxc4 {[%clk 0:00:14]}  Rb1+ {[%clk 0:00:43]} 0-1


[Site "https://www.chess.com"]

[Event "Titled Tuesday Blitz April 19 Early 2022"]
[White "Todorovic, Bojan"]
[Black "Piliczewski, Bogusz"]
[WhiteFideId "917087"]
[BlackFideId "1104144"]
[WhiteElo "2266"]
[BlackElo "1896"]
[Result "1-0"]
[Round "06"]
[TimeControl "180+1"]
[Date "2022.04.19"]
[WhiteClock "0:00:47"]
[BlackClock "0:00:25"]

1. d4 {[%clk 0:02:59]}  d5 {[%clk 0:02:59]} 2. c4 {[%clk 0:02:56]}  c6 {[%clk 0:02:59]} 3. Nf3 {[%clk 0:02:53]}  Nf6 {[%clk 0:03:00]} 4. e3 {[%clk 0:02:52]}  e6 {[%clk 0:02:57]} 5. Nc3 {[%clk 0:02:49]}  Nbd7 {[%clk 0:02:55]} 6. b3 {[%clk 0:02:42]}  Bd6 {[%clk 0:02:54]} 7. Bb2 {[%clk 0:02:41]}  O-O {[%clk 0:02:52]} 8. Be2 {[%clk 0:02:38]}  Ne4 {[%clk 0:02:42]} 9. O-O {[%clk 0:02:31]}  f5 {[%clk 0:02:40]} 10. Nxe4 {[%clk 0:02:16]}  fxe4 {[%clk 0:02:40]} 11. Ne5 {[%clk 0:02:16]}  Qg5 {[%clk 0:02:21]} 12. f4 {[%clk 0:01:43]}  exf3 {[%clk 0:02:18]} 13. Bxf3 {[%clk 0:01:34]}  Nxe5 {[%clk 0:02:06]} 14. dxe5 {[%clk 0:01:31]}  Bxe5 {[%clk 0:02:07]} 15. Bxe5 {[%clk 0:01:27]}  Qxe3+ {[%clk 0:02:04]} 16. Kh1 {[%clk 0:01:23]}  Qxe5 {[%clk 0:02:05]} 17. Qd3 {[%clk 0:01:18]}  Bd7 {[%clk 0:01:59]} 18. Rae1 {[%clk 0:01:14]}  Qg5 {[%clk 0:01:53]} 19. Qd4 {[%clk 0:01:11]}  b6 {[%clk 0:01:33]} 20. Re5 {[%clk 0:01:10]}  Qh6 {[%clk 0:01:16]} 21. Rfe1 {[%clk 0:01:01]}  Rf6 {[%clk 0:01:11]} 22. cxd5 {[%clk 0:01:00]}  cxd5 {[%clk 0:01:00]} 23. Bxd5 {[%clk 0:00:57]}  Re8 {[%clk 0:00:48]} 24. Bc4 {[%clk 0:00:54]}  b5 {[%clk 0:00:43]} 25. Qxd7 {[%clk 0:00:52]}  bxc4 {[%clk 0:00:41]} 26. Qxe8+ {[%clk 0:00:51]}  Rf8 {[%clk 0:00:40]} 27. Qxe6+ {[%clk 0:00:51]}  Qxe6 {[%clk 0:00:39]} 28. Rxe6 {[%clk 0:00:51]}  cxb3 {[%clk 0:00:35]} 29. axb3 {[%clk 0:00:50]}  h6 {[%clk 0:00:26]} 30. Re8 {[%clk 0:00:49]}  Rxe8 {[%clk 0:00:24]} 31. Rxe8+ {[%clk 0:00:47]}  Kf7 {[%clk 0:00:25]} 32. Ra8 {[%clk 0:00:47]} 1-0


[Site "https://www.chess.com"]

[Event "Titled Tuesday Blitz April 19 Early 2022"]
[White "Toncheva, Nadya"]
[Black "Liyanage, Ranindu Dilshan"]
[WhiteFideId "2924056"]
[BlackFideId "9915834"]
[WhiteElo "1884"]
[BlackElo "1858"]
[Result "0-1"]
[Round "06"]
[TimeControl "180+1"]
[Date "2022.04.19"]
[WhiteClock "0:00:02"]
[BlackClock "0:01:09"]

1. e4 {[%clk 0:03:00]}  c5 {[%clk 0:02:58]} 2. Nf3 {[%clk 0:03:00]}  d6 {[%clk 0:02:58]} 3. d4 {[%clk 0:03:00]}  cxd4 {[%clk 0:02:59]} 4. Nxd4 {[%clk 0:03:01]}  Nf6 {[%clk 0:03:00]} 5. f3 {[%clk 0:03:01]}  Nc6 {[%clk 0:02:58]} 6. c4 {[%clk 0:03:00]}  g6 {[%clk 0:02:59]} 7. Be3 {[%clk 0:03:00]}  Bg7 {[%clk 0:02:59]} 8. Nc3 {[%clk 0:03:01]}  O-O {[%clk 0:02:59]} 9. Be2 {[%clk 0:03:01]}  Nxd4 {[%clk 0:02:56]} 10. Bxd4 {[%clk 0:03:01]}  a5 {[%clk 0:02:56]} 11. O-O {[%clk 0:03:00]}  Bd7 {[%clk 0:02:55]} 12. Qd2 {[%clk 0:03:00]}  a4 {[%clk 0:02:54]} 13. Rac1 {[%clk 0:02:51]}  Qa5 {[%clk 0:02:51]} 14. Rfd1 {[%clk 0:02:50]}  Rfc8 {[%clk 0:02:49]} 15. Bf1 {[%clk 0:02:46]}  Be6 {[%clk 0:02:42]} 16. b3 {[%clk 0:02:41]}  axb3 {[%clk 0:02:40]} 17. axb3 {[%clk 0:02:42]}  Qb4 {[%clk 0:02:41]} 18. Qc2 {[%clk 0:02:07]}  Bh6 {[%clk 0:02:32]} 19. Ra1 {[%clk 0:01:53]}  Nd7 {[%clk 0:02:27]} 20. Nd5 {[%clk 0:01:33]}  Bxd5 {[%clk 0:02:22]} 21. exd5 {[%clk 0:01:34]}  Nc5 {[%clk 0:02:17]} 22. Qf2 {[%clk 0:01:06]}  Rxa1 {[%clk 0:01:57]} 23. Bxa1 {[%clk 0:01:01]}  Qxb3 {[%clk 0:01:54]} 24. Re1 {[%clk 0:00:56]}  Ra8 {[%clk 0:01:51]} 25. Qd4 {[%clk 0:00:49]}  f6 {[%clk 0:01:30]} 26. Rxe7 {[%clk 0:00:44]}  Nd7 {[%clk 0:01:19]} 27. f4 {[%clk 0:00:07]}  Ne5 {[%clk 0:01:15]} 28. c5 {[%clk 0:00:02]}  dxc5 {[%clk 0:01:09]} 0-1


[Site "https://www.chess.com"]

[Event "Titled Tuesday Blitz April 19 Early 2022"]
[White "Vignesh, N R"]
[Black "Hnydiuk, Aleksander"]
[WhiteFideId "25012215"]
[BlackFideId "1109057"]
[WhiteElo "2363"]
[BlackElo "2374"]
[Result "1-0"]
[Round "06"]
[TimeControl "180+1"]
[Date "2022.04.19"]
[WhiteClock "0:01:58"]
[BlackClock "0:00:09"]

1. c4 {[%clk 0:03:00]}  Nf6 {[%clk 0:02:59]} 2. Nc3 {[%clk 0:03:00]}  g6 {[%clk 0:03:00]} 3. g3 {[%clk 0:03:00]}  Bg7 {[%clk 0:02:59]} 4. Bg2 {[%clk 0:03:00]}  O-O {[%clk 0:03:00]} 5. e3 {[%clk 0:02:59]}  d6 {[%clk 0:03:00]} 6. Nge2 {[%clk 0:03:00]}  e5 {[%clk 0:03:00]} 7. O-O {[%clk 0:03:00]}  Nc6 {[%clk 0:02:59]} 8. Rb1 {[%clk 0:03:00]}  Bf5 {[%clk 0:02:56]} 9. d3 {[%clk 0:02:59]}  Qd7 {[%clk 0:02:51]} 10. b4 {[%clk 0:02:57]}  Rae8 {[%clk 0:02:42]} 11. Re1 {[%clk 0:02:56]}  h5 {[%clk 0:02:38]} 12. b5 {[%clk 0:02:56]}  Nd8 {[%clk 0:02:37]} 13. a4 {[%clk 0:02:55]}  h4 {[%clk 0:02:35]} 14. a5 {[%clk 0:02:53]}  h3 {[%clk 0:02:31]} 15. Bh1 {[%clk 0:02:53]}  e4 {[%clk 0:02:25]} 16. d4 {[%clk 0:02:49]}  Bg4 {[%clk 0:02:19]} 17. Ba3 {[%clk 0:02:46]}  Qf5 {[%clk 0:02:02]} 18. b6 {[%clk 0:02:42]}  axb6 {[%clk 0:01:51]} 19. axb6 {[%clk 0:02:42]}  c5 {[%clk 0:01:42]} 20. Nb5 {[%clk 0:02:32]}  Re6 {[%clk 0:00:39]} 21. d5 {[%clk 0:02:30]}  Bf3 {[%clk 0:00:37]} 22. Bxf3 {[%clk 0:02:29]}  Qxf3 {[%clk 0:00:36]} 23. Nf4 {[%clk 0:02:28]}  Re5 {[%clk 0:00:23]} 24. Nxd6 {[%clk 0:02:26]}  Ng4 {[%clk 0:00:21]} 25. Qxf3 {[%clk 0:02:25]}  exf3 {[%clk 0:00:22]} 26. Bxc5 {[%clk 0:02:23]}  Bh6 {[%clk 0:00:15]} 27. Bd4 {[%clk 0:02:18]}  Re7 {[%clk 0:00:13]} 28. Nb5 {[%clk 0:02:08]}  g5 {[%clk 0:00:10]} 29. Nxh3 {[%clk 0:02:04]}  Rfe8 {[%clk 0:00:09]} 30. Nd6 {[%clk 0:02:00]}  Rf8 {[%clk 0:00:08]} 31. Nf5 {[%clk 0:02:00]}  Rd7 {[%clk 0:00:08]} 32. Nxh6+ {[%clk 0:01:59]}  Nxh6 {[%clk 0:00:09]} 33. Nxg5 {[%clk 0:02:00]}  Nf5 {[%clk 0:00:09]} 34. Nxf3 {[%clk 0:01:59]}  f6 {[%clk 0:00:09]} 35. e4 {[%clk 0:01:58]} 1-0


[Site "https://www.chess.com"]

[Event "Titled Tuesday Blitz April 19 Early 2022"]
[White "Vlassov, Nikolai"]
[Black "Yanayt, Eugene"]
[WhiteFideId "4103360"]
[BlackFideId "2020165"]
[WhiteElo "2407"]
[BlackElo "2046"]
[Result "1-0"]
[Round "06"]
[TimeControl "180+1"]
[Date "2022.04.19"]
[WhiteClock "0:00:57"]
[BlackClock "0:00:10"]

1. e4 {[%clk 0:03:00]}  c5 {[%clk 0:02:58]} 2. c3 {[%clk 0:03:00]}  g6 {[%clk 0:02:56]} 3. d4 {[%clk 0:03:00]}  d5 {[%clk 0:02:54]} 4. dxc5 {[%clk 0:02:56]}  dxe4 {[%clk 0:02:52]} 5. Qxd8+ {[%clk 0:02:56]}  Kxd8 {[%clk 0:02:52]} 6. Na3 {[%clk 0:02:52]}  a5 {[%clk 0:02:37]} 7. Bf4 {[%clk 0:02:16]}  f6 {[%clk 0:02:23]} 8. O-O-O+ {[%clk 0:02:16]}  Nd7 {[%clk 0:02:23]} 9. Nc4 {[%clk 0:01:57]}  e5 {[%clk 0:02:14]} 10. Nb6 {[%clk 0:01:48]}  Rb8 {[%clk 0:02:05]} 11. Bb5 {[%clk 0:01:47]}  exf4 {[%clk 0:01:59]} 12. Bxd7 {[%clk 0:01:43]}  Bxd7 {[%clk 0:01:53]} 13. Nxd7 {[%clk 0:01:42]}  Rc8 {[%clk 0:01:50]} 14. Nxf8+ {[%clk 0:01:42]}  Ke7 {[%clk 0:01:48]} 15. Nd7 {[%clk 0:01:41]}  Nh6 {[%clk 0:01:44]} 16. Ne2 {[%clk 0:01:36]}  g5 {[%clk 0:01:42]} 17. b4 {[%clk 0:01:30]}  Nf5 {[%clk 0:01:17]} 18. Nb6 {[%clk 0:01:29]}  Rcd8 {[%clk 0:01:12]} 19. Rhe1 {[%clk 0:01:23]}  e3 {[%clk 0:01:09]} 20. Nd4 {[%clk 0:01:20]}  Nxd4 {[%clk 0:01:03]} 21. cxd4 {[%clk 0:01:18]}  axb4 {[%clk 0:01:00]} 22. fxe3 {[%clk 0:01:19]}  fxe3 {[%clk 0:00:58]} 23. Rxe3+ {[%clk 0:01:19]}  Kf7 {[%clk 0:00:58]} 24. d5 {[%clk 0:01:17]}  Rhe8 {[%clk 0:00:50]} 25. Rxe8 {[%clk 0:01:17]}  Rxe8 {[%clk 0:00:49]} 26. c6 {[%clk 0:01:11]}  bxc6 {[%clk 0:00:39]} 27. dxc6 {[%clk 0:01:06]}  Re6 {[%clk 0:00:37]} 28. Rd7+ {[%clk 0:01:03]}  Ke8 {[%clk 0:00:36]} 29. Rc7 {[%clk 0:01:03]}  Re3 {[%clk 0:00:13]} 30. Nd5 {[%clk 0:00:57]}  Re4 {[%clk 0:00:11]} 31. Nxf6+ {[%clk 0:00:56]}  Kd8 {[%clk 0:00:10]} 32. Rd7+ {[%clk 0:00:57]} 1-0


[Site "https://www.chess.com"]

[Event "Titled Tuesday Blitz April 19 Early 2022"]
[White "Vokhidov, Shamsiddin"]
[Black "Kobo, Ori"]
[WhiteFideId "14204223"]
[BlackFideId "2812320"]
[WhiteElo "2611"]
[BlackElo "2420"]
[Result "1-0"]
[Round "06"]
[TimeControl "180+1"]
[Date "2022.04.19"]
[WhiteClock "0:00:15"]
[BlackClock "0:00:01"]

1. e4 {[%clk 0:03:00]}  e6 {[%clk 0:02:59]} 2. d4 {[%clk 0:03:00]}  d5 {[%clk 0:02:59]} 3. Nc3 {[%clk 0:02:59]}  Nf6 {[%clk 0:03:00]} 4. Bg5 {[%clk 0:02:59]}  dxe4 {[%clk 0:02:59]} 5. Nxe4 {[%clk 0:03:00]}  Be7 {[%clk 0:02:59]} 6. Nxf6+ {[%clk 0:02:59]}  Bxf6 {[%clk 0:02:59]} 7. Bxf6 {[%clk 0:02:59]}  Qxf6 {[%clk 0:03:00]} 8. Nf3 {[%clk 0:03:00]}  c5 {[%clk 0:02:58]} 9. Bb5+ {[%clk 0:03:00]}  Bd7 {[%clk 0:02:54]} 10. Qe2 {[%clk 0:03:00]}  O-O {[%clk 0:02:51]} 11. O-O-O {[%clk 0:02:58]}  cxd4 {[%clk 0:02:35]} 12. Bxd7 {[%clk 0:02:55]}  Nxd7 {[%clk 0:02:34]} 13. Rxd4 {[%clk 0:02:56]}  Nc5 {[%clk 0:02:30]} 14. Rhd1 {[%clk 0:02:54]}  Rac8 {[%clk 0:02:28]} 15. Ne5 {[%clk 0:02:52]}  Rc7 {[%clk 0:02:06]} 16. f4 {[%clk 0:02:50]}  Rfc8 {[%clk 0:02:06]} 17. R1d2 {[%clk 0:02:47]}  h6 {[%clk 0:02:00]} 18. g3 {[%clk 0:02:46]}  a6 {[%clk 0:01:49]} 19. Qd1 {[%clk 0:02:37]}  Kh7 {[%clk 0:01:40]} 20. c3 {[%clk 0:02:33]}  b5 {[%clk 0:01:39]} 21. Rd8 {[%clk 0:02:22]}  b4 {[%clk 0:01:27]} 22. c4 {[%clk 0:02:19]}  Qf5 {[%clk 0:01:20]} 23. Rxc8 {[%clk 0:02:12]}  Rxc8 {[%clk 0:01:21]} 24. Qc2 {[%clk 0:02:10]}  Qxc2+ {[%clk 0:01:20]} 25. Kxc2 {[%clk 0:02:10]}  f6 {[%clk 0:01:21]} 26. Nf3 {[%clk 0:02:05]}  Kg6 {[%clk 0:01:15]} 27. Rd6 {[%clk 0:01:54]}  a5 {[%clk 0:00:54]} 28. b3 {[%clk 0:01:51]}  Kf7 {[%clk 0:00:47]} 29. Nd4 {[%clk 0:01:49]}  g5 {[%clk 0:00:33]} 30. f5 {[%clk 0:01:33]}  exf5 {[%clk 0:00:23]} 31. Nxf5 {[%clk 0:01:33]}  h5 {[%clk 0:00:19]} 32. Rd5 {[%clk 0:01:19]}  Rc7 {[%clk 0:00:20]} 33. Nd6+ {[%clk 0:01:09]}  Kg6 {[%clk 0:00:20]} 34. Kd2 {[%clk 0:01:03]}  a4 {[%clk 0:00:13]} 35. Nb5 {[%clk 0:01:03]}  Rc6 {[%clk 0:00:12]} 36. Nd4 {[%clk 0:00:49]}  Rc8 {[%clk 0:00:12]} 37. bxa4 {[%clk 0:00:44]}  Nxa4 {[%clk 0:00:11]} 38. Kc2 {[%clk 0:00:26]}  Nb6 {[%clk 0:00:09]} 39. Rb5 {[%clk 0:00:25]}  Rxc4+ {[%clk 0:00:08]} 40. Kd3 {[%clk 0:00:22]}  Rc3+ {[%clk 0:00:09]} 41. Ke4 {[%clk 0:00:20]}  Nc4 {[%clk 0:00:09]} 42. Rxb4 {[%clk 0:00:19]}  Ne5 {[%clk 0:00:04]} 43. a4 {[%clk 0:00:19]}  Ra3 {[%clk 0:00:04]} 44. Kd5 {[%clk 0:00:18]}  Ra2 {[%clk 0:00:04]} 45. h4 {[%clk 0:00:15]}  Ra3 {[%clk 0:00:02]} 46. Nb5 {[%clk 0:00:15]}  Rxg3 {[%clk 0:00:01]} 47. a5 {[%clk 0:00:15]} 1-0


[Site "https://www.chess.com"]